Cogmind - Beta 10.2 @@@ ROGUE MODE // 2021.06.07 @ 06:21:33 Player: Exp. Geonium Core Result: Self-destructed Performance ------------- Evolutions (2) 1000 Regions Visited (3) 600 Robots Destroyed (31) 155 Value Destroyed (676) 676 Prototype IDs (1) 20 Alien Tech Used (0) 0 Bonus (46) 46 TOTAL SCORE: 2497 Bonus ------- High Alert Combat Kills 46 Cogmind --------- Core Integrity 244/550 Matter 199/300 Energy 100/100 System Corruption 0% Temperature Cool (9) Movement Core (600) Ox11 Location -8/Materials Parts ------- > --- POWER (1) -------- (None) > --- PROPULSION (2) --- (None) > --- UTILITY (6) ------ Small Storage Unit Large Storage Unit Large Storage Unit > --- WEAPON (2) ------- (None) > --- INVENTORY (18) --- Improved Ion Engine Large Storage Unit Large Storage Unit Improved Terrain Scanner Advanced Terrain Scanner Improved Medium Laser Enhanced Autogun Peak State ------------ > --- POWER ------------ Light Ion Engine > --- PROPULSION ------- Wheel Compact Wheel > --- UTILITY ---------- Small Storage Unit Large Storage Unit Large Storage Unit Improved ECM Suite > --- WEAPON ----------- Improved Medium Laser Improved Medium Laser > --- INVENTORY -------- Improved Ion Engine Large Storage Unit Large Storage Unit Improved Terrain Scanner Advanced Terrain Scanner Improved Medium Laser Enhanced Autogun [Rating: 16] Favorites ----------- Power Light Ion Engine Engine Light Ion Engine Propulsion Wheel Treads Light Treads Wheel Wheel Utility Small Storage Unit Device Improved ECM Suite Storage Small Storage Unit Weapon Assault Rifle Energy Gun Improved Medium Laser Ballistic Gun Assault Rifle Build | -11 -10 -9 -8 ------- Run | Scr Mat Mat Mat Slots Evolved 4 | . . 2 2 Power . | . . . . Propulsion . | . . . . Utility 4 | . . 2 2 Weapon . | . . . . Parts Attached 19 | 6 . 2 11 Power 4 | 1 . 1 2 Engine 4 | 1 . 1 2 Core . | . . . . Reactor . | . . . . Propulsion 4 | 2 . . 2 Treads 1 | 1 . . . Leg . | . . . . Wheel 3 | 1 . . 2 Hover . | . . . . Flight . | . . . . Utility 4 | 1 . . 3 Device 1 | . . . 1 Storage 3 | 1 . . 2 Processor . | . . . . Hackware . | . . . . Protection . | . . . . Artifact . | . . . . Weapon 7 | 2 . 1 4 Energy Gun 2 | . . . 2 Energy Cannon . | . . . . Ballistic Gun 5 | 2 . 1 2 Ballistic Cannon . | . . . . Launcher . | . . . . Special Weapon . | . . . . Impact Weapon . | . . . . Slashing Weapon . | . . . . Piercing Weapon . | . . . . Special Melee Weapon . | . . . . Unidentified Prototypes 1 | . . . 1 Parts Lost 13 | . . 2 11 Power 2 | . . . 2 Propulsion 4 | . . 1 3 Utility 1 | . . . 1 Weapon 6 | . . 1 5 Highest Loss Streak 6 | . . 1 6 Average Slot Usage (%) 69 | . 85 61 64 Engine 10 | . 14 11 6 Treads 7 | . 14 10 . Wheel 13 | . 14 11 15 Storage 17 | . 14 11 25 Energy Gun 1 | . . . 4 Ballistic Gun 18 | . 28 17 11 Naked Turns . | . . . . Heaviest Build 50 | 11 11 14 50 Greatest Support 26 | 10 10 10 26 Greatest Overweight (x) 4 | 1 1 1 4 Average Overweight (x) 1 | . 1 . 1 Largest Inventory Capacity 18 | 6 6 6 18 Average Capacity 9 | 5 6 6 16 Most Carried 7 | . 2 3 7 Average Carried 2 | . . 2 4 Final Capacity 18 | 6 6 6 18 Final Carried 7 | . 2 2 7 Class Distribution -------------------- 100% | Mutant Dominant Class ---------------- Mutant | -10/Materials Mutant | -9/Materials Mutant | -8/Materials Resources | -11 -10 -9 -8 ----------- Run | Scr Mat Mat Mat Matter Collected 519 | 80 . 255 184 Remotely . | . . . . Salvage Created 796 | . 42 372 382 Parts 51 | . 3 28 20 Haulers Intercepted 1 | . . . 1 Recyclers Shooed . | . . . . Parts Field Recycled . | . . . . Retrieved Matter . | . . . . Parts Self-Destructed . | . . . . Prevented . | . . . . Kills | -11 -10 -9 -8 ------- Run | Scr Mat Mat Mat Combat Hostiles Destroyed 27 | . 3 12 12 Guns 21 | . 3 12 6 AOE 6 | . . . 6 Classes Destroyed 7 | . 1 2 4 Worker 1 | . . . 1 Hauler 1 | . . . 1 Recycler 1 | . . . 1 Watcher 1 | . . . 1 Swarmer 18 | . 3 7 8 Grunt 5 | . . 2 3 Sentry 4 | . . 3 1 Best Kill Streak 10 | . 3 7 10 Combat Bots Only 7 | . 3 7 6 Max Kills in Single Turn 7 | . 1 1 7 Gunslinging . | . . . . Exploded 5 | . . . 5 Melee . | . . . . Uniques/NPCs Destroyed . | . . . . Combat | -11 -10 -9 -8 -------- Run | Scr Mat Mat Mat Damage Taken 1817 | . 107 488 1222 Core 422 | . 16 100 306 Absorbed by Shields . | . . . . Core Remaining (%) 89 | 100 93 75 . Volleys Fired 69 | . 7 36 26 Largest 2 | . 2 2 2 Hottest 112 | . 40 40 112 Shots Fired 115 | . 14 53 48 Gun 115 | . 14 53 48 Cannon . | . . . . Launcher . | . . . . Special . | . . . . Kinetic 99 | . 14 53 32 Thermal 16 | . . . 16 Explosive . | . . . . Electromagnetic . | . . . . Robot Hit Streak 12 | . 5 12 7 Robot Miss Streak 4 | . 2 2 4 Penetration Max . | . . . . Secondary Targets 1 | . . . 1 Max Gunslinging Chain 1 | . . . 1 Shots Hit Robots 72 | . 9 34 29 Core Hits 44 | . 4 19 21 Critical Hits . | . . . . Critical Kills . | . . . . Critical Parts Destroyed . | . . . . Melee Attacks . | . . . . Impact . | . . . . Slashing . | . . . . Piercing . | . . . . Sneak Attacks . | . . . . Combat Hostiles . | . . . . Follow-up Attacks . | . . . . Damage Inflicted 2291 | . 129 415 1747 Guns 909 | . 129 415 365 Cannons . | . . . . Explosions 1382 | . . . 1382 Melee . | . . . . Ramming . | . . . . Kinetic 725 | . 129 415 181 Thermal 184 | . . . 184 Explosive 1382 | . . . 1382 Electromagnetic . | . . . . Impact . | . . . . Slashing . | . . . . Piercing . | . . . . Highest Corruption . | . . . . Average Corruption . | . . . . Corruption Purged . | . . . . Overload Shots . | . . . . Overflow Damage 321 | . . . 321 Projectiles . | . . . . Explosions 321 | . . . 321 Melee . | . . . . Knockbacks . | . . . . Impact . | . . . . Kinetic . | . . . . Secondary . | . . . . Self-Inflicted Damage 341 | . . . 341 Shots 4 | . . . 4 Rammed . | . . . . Targets Rammed . | . . . . Kicked . | . . . . Crushed . | . . . . Highest Temperature 257 | . . 7 257 Average Temperature 133 | . . 6 148 Received Heat Transfer 462 | . 6 141 315 Effects 1 | . . . 1 Interference 1 | . . . 1 Siege Activations . | . . . . Robots Corrupted . | . . . . Combat Hostiles . | . . . . Parts Fried . | . . . . Impact Corruptions . | . . . . Robots Melted . | . . . . Combat Hostiles . | . . . . Parts Melted . | . . . . Heat Transferred 407 | . . . 407 Parts Sabotaged . | . . . . Parts Stolen . | . . . . Parts Stripped . | . . . . Power Chain Reactions . | . . . . Missiles Intercepted . | . . . . Alert | -11 -10 -9 -8 ------- Run | Scr Mat Mat Mat Peak Influence 571 | . 76 431 571 Initial 177 | . . 31 177 Average 205 | . 11 256 323 Maximum Alert Level 2 | . . 2 2 Low Security (%) 59 | 100 100 47 37 Level 1 19 | . . 29 27 Level 2 20 | . . 23 34 Level 3 . | . . . . Level 4 . | . . . . Level 5 . | . . . . High Security . | . . . . Max Security . | . . . . Squads Dispatched 6 | . 2 1 3 Investigation 3 | . 2 . 1 Extermination . | . . . . Reinforcement 3 | . . 1 2 Assault . | . . . . Garrison . | . . . . Intercept . | . . . . Construction Impeded 1 | . . . 1 Haulers Reinforced . | . . . . Stealth | -11 -10 -9 -8 --------- Run | Scr Mat Mat Mat Distress Signals 5 | . . . 5 Communications Jammed . | . . . . Distress Signals . | . . . . Times Spotted 47 | . 4 19 24 Peak Tracking Total 9 | . 3 9 9 Tactical Retreats 3 | . . 2 1 Traps | -11 -10 -9 -8 ------- Run | Scr Mat Mat Mat Traps Triggered 1 | . 1 . . Indirectly . | . . . . Trap Hack Attempts . | . . . . Triggered . | . . . . Disarmed . | . . . . Reprogrammed . | . . . . Reused . | . . . . Traps Extracted . | . . . . Installed . | . . . . Triggered . | . . . . Machines | -11 -10 -9 -8 ---------- Run | Scr Mat Mat Mat Machines Disabled 6 | . . . 6 Max in Single Turn 4 | . . . 4 Machines Sabotaged . | . . . . Garrisons Compromised . | . . . . Overloaded Fab Kills . | . . . . Fab Network Shutdowns . | . . . . Hacking | -11 -10 -9 -8 --------- Run | Scr Mat Mat Mat Machines Accessed 6 | . 3 2 1 Terminals 6 | . 3 2 1 Fabricators . | . . . . Repair Stations . | . . . . Recycling Units . | . . . . Scanalyzers . | . . . . Garrison Access . | . . . . Total Hacks 15 | . 8 5 2 Successful 3 | . 2 1 . Failed 12 | . 6 4 2 Catastrophic 2 | . 1 1 . Database Lockouts . | . . . . Manual 14 | . 8 4 2 Terminals 15 | . 8 5 2 Fabricators . | . . . . Repair Stations . | . . . . Recycling Units . | . . . . Scanalyzers . | . . . . Garrison Access . | . . . . Terminal Hacks 3 | . 2 1 . Zone Layout 3 | . 2 1 . Fabricator Hacks . | . . . . Repair Station Hacks . | . . . . Recycling Unit Hacks . | . . . . Scanalyzer . | . . . . Garrison Access Hacks . | . . . . Unauthorized Hacks . | . . . . Terminals . | . . . . Fabricators . | . . . . Repair Stations . | . . . . Recycling Units . | . . . . Scanalyzers . | . . . . Garrison Access . | . . . . Data Cores Recovered . | . . . . Used . | . . . . Hacking Detections 5 | . 2 2 1 Full Trace Events 2 | . 1 . 1 Feedback Events . | . . . . Feedback Blocked . | . . . . Robot Schematics Acquired . | . . . . Robots Built . | . . . . Matter . | . . . . Time . | . . . . Total Robot Build Rating . | . . . . Part Schematics Acquired . | . . . . Parts Built . | . . . . Matter . | . . . . Time . | . . . . Total Part Build Rating . | . . . . Parts Repaired . | . . . . Time . | . . . . Parts Recycled . | . . . . Recycled Matter . | . . . . Retrieved Matter . | . . . . Retrieved Components . | . . . . Parts Scanalyzed . | . . . . Part Schematics Acquired . | . . . . Parts Damaged . | . . . . Bothacking | -11 -10 -9 -8 ------------ Run | Scr Mat Mat Mat Used RIF Installer . | . . . . Robots Hacked . | . . . . Non-combat . | . . . . Combat . | . . . . Robot Hacks Applied . | . . . . Relay Couplers Released . | . . . . Robots Rewired . | . . . . Allies Hacked . | . . . . Hacks Repelled . | . . . . Allies | -11 -10 -9 -8 -------- Run | Scr Mat Mat Mat Total Allies . | . . . . Largest Group . | . . . . Highest-Rated Group . | . . . . Highest-Rated Ally . | . . . . Total Orders . | . . . . Ally Attacks . | . . . . Total Damage . | . . . . Kills . | . . . . Allies Corrupted . | . . . . Allies Melted . | . . . . Intel | -11 -10 -9 -8 ------- Run | Scr Mat Mat Mat Robot Analysis Total . | . . . . Derelict Logs Recovered . | . . . . Drone Launches . | . . . . Drone Recoveries . | . . . . Exploration | -11 -10 -9 -8 ------------- Run | Scr Mat Mat Mat Turns Passed 816 | 34 215 272 295 Spaces Moved 498 | 30 91 179 198 Core 3 | 3 . . . Treads . | . . . . Legs . | . . . . Wheels 495 | 27 91 179 198 Hover . | . . . . Flight . | . . . . Fastest Speed 50 | 50 90 80 80 Average Speed 93 | 83 90 89 100 Slowest Speed 120 | 90 90 90 120 Overloaded Moves . | . . . . Propulsion Burnouts . | . . . . Robots Hopped . | . . . . Cave-ins Triggered . | . . . . Exploration Rate (%) 20 | 3 23 25 30 Regions Visited 3 Branch Regions . Pre-discovered Areas . | . . . . Known Exits Taken . | . . . . Unknown Exits Taken 3 | 1 1 1 . Scrap Searched . | . . . . Spaces Dug . | . . . . Terrain Destroyed 21 | . . . 21 Melee . | . . . . Projectile . | . . . . AOE 21 | . . . 21 Terrain Rammed . | . . . . Walls Destroyed . | . . . . Machines Disabled . | . . . . Actions | -11 -10 -9 -8 --------- Run | Scr Mat Mat Mat Total 725 | 35 209 238 243 Wait 132 | . 110 21 1 Move 495 | 29 90 178 198 Hop . | . . . . Pick Up 8 | . 2 . 6 Fast Attach 15 | 6 . 1 8 Attach 2 | . . . 2 Detach . | . . . . Swap 2 | . . 1 1 Drop 2 | . . 1 1 Fire 69 | . 7 36 26 Melee . | . . . . Ram . | . . . . Kick . | . . . . Crush . | . . . . Escape Stasis . | . . . . Rewire . | . . . . Trap . | . . . . Miscellaneous . | . . . . Route ------- -11/Scrapyard -10/Materials -9/Materials -8/Materials History --------- Turn | Location | Event 10 | -11/Scrapyard | Discovered new exit (range 16) 35 | -11/Scrapyard | Entered Materials 234 | -10/Materials | Discovered new exit (range 15) 250 | -10/Materials | Entered another Materials area 250 | -9/Materials | Evolved 2 slots: Utility x2 307 | -9/Materials | Build established: Mutant 448 | -9/Materials | Destroyed 7 combat bots 519 | -9/Materials | Discovered new exit (range 4) 522 | -9/Materials | Entered another Materials area 522 | -8/Materials | Evolved 2 slots: Utility x2 746 | -8/Materials | Lost 5 parts (1p1n3w) 815 | -8/Materials | Core integrity fell below 50% 817 | -8/Materials | Self-destructed Last Messages --------------- 00805_ U-05 Engineer lays Concrete. 00806_ K-01 Serf collects debris. 00806_ Acquired 55 matter. 00806_ U-05 Engineer lays Concrete. 00807_ W-25 Informer sends out distress signal. 00807_ U-05 Engineer lays Concrete. 00807_ K-01 Serf collects debris. 00808_ K-01 Serf destroyed. 00808_ K-01 Serf collects debris. 00809_ U-05 Engineer lays Concrete. 00810_ K-01 Serf collects debris. 00811_ Acquired 14 matter. 00811_ U-05 Engineer lays Concrete. 00813_ Com. Wheel destroyed. 00814_ Imp. Medium Laser destroyed. 00815_ U-05 Engineer lays Concrete. 00815_ Imp. ECM Suite destroyed. 00816_ U-05 Engineer lays Concrete. 00817_ Wheel destroyed. 00817_ U-05 Engineer lays Concrete. Map ----- +----------------------------------------------------+ | # ! # # #??????????# | | # # #??????????#####+ | | # """"""" + % #??????????????# | | # """"""" # #??????????????# | | ??""""""" # % #??????????????# | | ???"""""" # ########??????????????# | | ?????"""" # [ !#??????????????# | | ?????###### #??????????????# | | ??????????# == #??????????????# | | ??????????# = #?????????????? | | ??????????# #?????????????? | | ??????????# #?????????????? | | ??????????# Y#### #?????????????? | | ??????????## u #??????????????????? | | ???????????# #??????????????????? | | ???????????# % #???????????????????# | | ???????????# = ! ##???????????????????? | | ???????????# [ = #?????????????????????? | | ???????????####" ""#T###* #?????????????????????? | | ??????????????#"R""###?# #?????????????????????? | | ??????????????#""""#???# ! #?????????????????????? | | ??????????????######???#= =#????#????????????????? | | ??????????????????????## #### ##???????????????? | | ??????????????????????# u g #???????????????? | | ??????????????????????# gg +???????????????? | | ??????????????????????# @ #???????????????? | | ??????????????????????+ w###### #???????????????? | | ??????????????????????# #??????#???????????????? | | ??????????????????????# #??????????????????????? | | ??????????????????????# #??????????????????????? | | ??????????????????????# #??????????????????????? | | ??????????????????????# #??????????????????????? | | ??????????????????????# #??????????????????????? | | ??????????????????????# #??????????????????????? | | ??????????????????????# ???????????????????????? | | ??????????????????????# ???????????????????????? | | ??????????????????????# ???????????????????????? | | ?????????????????????? ???????????????????????? | | ?????????????????????? ???????????????????????? | | ?????????????????????? T ???????????????????????? | | ??????????????????????? ? ???????????????????????? | | ?????????????????????????????????????????????????? | | ?????????????????????????????????????????????????? | | ?????????????????????????????????????????????????? | | ?????????????????????????????????????????????????? | | ?????????????????????????????????????????????????? | | ?????????????????????????????????????????????????? | | ?????????????????????????????????????????????????? | | ?????????????????????????????????????????????????? | | ?????????????????????????????????????????????????? | +----------------------------------------------------+ Best States ------------- Heat Dissipation 31 Energy Generation 14 Energy Capacity 275 Matter Stores 178 Matter Capacity 300 Sight Range 16 Terrain Scan Density 10 ECM Strength 2 Evasion (%) 44 Recoil Reduction 1 Item Schematics ----------------- None Robot Schematics ------------------ None Fabricated ------------ Nothing Alien Tech Used ----------------- None Achievements -------------- None Challenges ------------ None Game ------ Seed AerolevLatentBiocell Manual? 0 Play Time 00:10:07 Cumulative 84.8 hours Start 2021.06.07 @ 05:56:58 End 2021.06.07 @ 06:21:33 Sessions 1 Manual Loads 0 Difficulty Rogue Special Mode None Game No. 137 Rogue 137 Adventurer 0 Explorer 0 Win Type - Total 1 Types 1/0/0/0/0/0/0/0/0 Lore% 46 Gallery% 63 Achievement% 51 Wizard Run 0 Options --------- ASCII 0 Keyboard 0 Movement Numpad Keybinds 0 Fullscreen 1 Font 18/Terminus Map View 76x50 Tactical HUD 1 Map Filters NONE Filters NONE Steam 1 RUN: 6ed2fc36-7a53-415e-a1a9-1c2ade885afa